[Event "*** Titled Tuesday Blitz"]
[Site "Chess.com"]
[Date "2018.05.01"]
[Round "1"]
[White "Supernotar"]
[Black "alturas_pacificas"]
[Result "1-0"]
[WhiteElo "2494"]
[BlackElo "2138"]
[TimeControl "180+2"]
[EndTime "13:08:24 PDT"]
[Termination "Supernotar won by resignation"]

1. d4 {[%clk 0:02:47.8]} 1... d5 {[%clk 0:03:00.5]} 2. c4 {[%clk 0:02:48.8]}
2... c6 {[%clk 0:03:01.4]} 3. e3 {[%clk 0:02:49.7]} 3... Nf6 {[%clk 0:03:02.4]}
4. Bd3 {[%clk 0:02:50.8]} 4... dxc4 {[%clk 0:02:59.7]} 5. Bxc4 {[%clk
0:02:51.5]} 5... Bf5 {[%clk 0:03:01]} 6. Qb3 {[%clk 0:02:51.9]} 6... e6 {[%clk
0:02:51.9]} 7. Qxb7 {[%clk 0:02:52.5]} 7... Nbd7 {[%clk 0:02:52.8]} 8. Qxc6
{[%clk 0:02:53.1]} 8... Rc8 {[%clk 0:02:47.5]} 9. Qa4 {[%clk 0:02:53.6]} 9...
Be7 {[%clk 0:01:42.2]} 10. Nc3 {[%clk 0:02:48]} 10... O-O {[%clk 0:01:43.3]} 11.
Be2 {[%clk 0:02:48.7]} 11... h5 {[%clk 0:01:22.3]} 12. Nf3 {[%clk 0:02:46.8]}
12... Ne4 {[%clk 0:01:06.5]} 13. Nxe4 {[%clk 0:02:45.6]} 13... Bxe4 {[%clk
0:01:08.4]} 14. O-O {[%clk 0:02:43.1]} 14... h4 {[%clk 0:01:09.6]} 15. h3 {[%clk
0:02:40.4]} 15... Nb6 {[%clk 0:01:04.8]} 16. Qd1 {[%clk 0:02:37.9]} 16... Nd5
{[%clk 0:01:05]} 17. Bd2 {[%clk 0:02:35.2]} 17... Qb6 {[%clk 0:01:00.2]} 18. Qb3
{[%clk 0:02:30.3]} 18... Qxb3 {[%clk 0:00:56.7]} 19. axb3 {[%clk 0:02:29.4]}
19... Rc2 {[%clk 0:00:58.1]} 20. Rxa7 {[%clk 0:02:25.5]} 20... Bxf3 {[%clk
0:00:56.9]} 21. Bxf3 {[%clk 0:02:26]} 21... Rxd2 {[%clk 0:00:54]} 22. Bxd5
{[%clk 0:02:25.5]} 22... Bf6 {[%clk 0:00:47.2]} 23. Bc4 {[%clk 0:02:21.3]} 23...
Rxb2 {[%clk 0:00:48.2]} 24. Rfa1 {[%clk 0:02:20.8]} 24... g5 {[%clk 0:00:46.5]}
25. R7a2 {[%clk 0:02:18.3]} 25... Rxa2 {[%clk 0:00:46.7]} 26. Rxa2 {[%clk
0:02:19.2]} 26... Kg7 {[%clk 0:00:47.7]} 27. Kf1 {[%clk 0:02:19.4]} 27... Be7
{[%clk 0:00:46]} 28. Ra7 {[%clk 0:02:18.7]} 28... Kf6 {[%clk 0:00:47.1]} 29. Ke2
{[%clk 0:02:17.9]} 29... Rb8 {[%clk 0:00:43.7]} 30. e4 {[%clk 0:02:18]} 30...
Bb4 {[%clk 0:00:43.3]} 31. e5+ {[%clk 0:02:17.1]} 31... Kg6 {[%clk 0:00:43.8]}
32. Ke3 {[%clk 0:02:14.7]} 32... Be1 {[%clk 0:00:42.2]} 33. d5 {[%clk
0:02:14.6]} 33... exd5 {[%clk 0:00:40.6]} 34. Bxd5 {[%clk 0:02:15.7]} 34... Rf8
{[%clk 0:00:40.1]} 35. Ra6+ {[%clk 0:02:16.1]} 35... Kg7 {[%clk 0:00:40.6]} 36.
f3 {[%clk 0:02:09.9]} 36... Bg3 {[%clk 0:00:40.5]} 37. e6 {[%clk 0:02:09.8]}
37... fxe6 {[%clk 0:00:40.5]} 38. Bxe6 {[%clk 0:02:10.4]} 38... Bf4+ {[%clk
0:00:41.7]} 39. Ke4 {[%clk 0:02:10.7]} 39... Re8 {[%clk 0:00:42.3]} 40. Kf5
{[%clk 0:02:10.9]} 40... Rf8+ {[%clk 0:00:42.4]} 41. Kg4 {[%clk 0:02:11.9]}
41... Rd8 {[%clk 0:00:40.6]} 42. Ra2 {[%clk 0:02:04.3]} 42... Rd2 {[%clk
0:00:39.2]} 43. Rxd2 {[%clk 0:02:04]} 43... Bxd2 {[%clk 0:00:41.1]} 44. Kf5
{[%clk 0:02:04.9]} 44... Kf8 {[%clk 0:00:40.8]} 45. Bc4 {[%clk 0:02:01.1]} 45...
Ke7 {[%clk 0:00:41]} 46. b4 {[%clk 0:02:02.2]} 46... Kd6 {[%clk 0:00:40.7]} 47.
b5 {[%clk 0:02:03.2]} 47... Kc5 {[%clk 0:00:42]} 48. Bf1 {[%clk 0:02:03.9]}
48... Kb6 {[%clk 0:00:41.9]} 49. Kg4 {[%clk 0:02:00.8]} 49... Bf4 {[%clk
0:00:42.2]} 50. g3 {[%clk 0:01:59]} 50... Bxg3 {[%clk 0:00:28.4]} 51. Kxg5
{[%clk 0:01:59.5]} 51... Kc5 {[%clk 0:00:26.8]} 52. f4 {[%clk 0:01:51.1]} 52...
Kd5 {[%clk 0:00:23.6]} 53. Bg2+ {[%clk 0:01:48.7]} 53... Ke6 {[%clk 0:00:22.5]}
54. b6 {[%clk 0:01:48.7]} 54... Kd7 {[%clk 0:00:21.9]} 55. b7 {[%clk 0:01:49]}
55... Kc7 {[%clk 0:00:22.9]} 56. f5 {[%clk 0:01:50]} 56... Be1 {[%clk
0:00:18.4]} 57. f6 {[%clk 0:01:50.5]} 57... Kb8 {[%clk 0:00:19.1]} 58. f7 {[%clk
0:01:50.4]} 58... Bb4 {[%clk 0:00:20]} 59. Kxh4 {[%clk 0:01:51.2]} 59... Bf8
{[%clk 0:00:20.6]} 60. Kg5 {[%clk 0:01:52.1]} 1-0

[Event "*** Titled Tuesday Blitz"]
[Site "Chess.com"]
[Date "2018.05.01"]
[Round "1"]
[White "pultineviciuspaulius"]
[Black "evgenysharapov"]
[Result "0-1"]
[WhiteElo "2545"]
[BlackElo "2279"]
[TimeControl "180+2"]
[EndTime "13:08:26 PDT"]
[Termination "evgenysharapov won by resignation"]

1. Nf3 {[%clk 0:02:52]} 1... c5 {[%clk 0:02:59.8]} 2. g3 {[%clk 0:02:49.1]} 2...
Nc6 {[%clk 0:03:00.1]} 3. Bg2 {[%clk 0:02:47.9]} 3... g6 {[%clk 0:03:01.1]} 4.
O-O {[%clk 0:02:49.4]} 4... Bg7 {[%clk 0:03:01.8]} 5. c3 {[%clk 0:02:51.3]} 5...
e5 {[%clk 0:03:02.4]} 6. d3 {[%clk 0:02:51.8]} 6... Nge7 {[%clk 0:03:02.7]} 7.
e4 {[%clk 0:02:53.7]} 7... O-O {[%clk 0:03:03]} 8. Nbd2 {[%clk 0:02:54.5]} 8...
d5 {[%clk 0:03:03.2]} 9. a3 {[%clk 0:02:55.6]} 9... a5 {[%clk 0:03:03]} 10. a4
{[%clk 0:02:56.9]} 10... h6 {[%clk 0:03:03.3]} 11. Re1 {[%clk 0:02:57.9]} 11...
Be6 {[%clk 0:03:00.6]} 12. exd5 {[%clk 0:02:58.8]} 12... Bxd5 {[%clk 0:02:59.8]}
13. Qc2 {[%clk 0:02:54]} 13... Kh7 {[%clk 0:02:59.5]} 14. b3 {[%clk 0:02:33]}
14... Qc7 {[%clk 0:02:57]} 15. Nc4 {[%clk 0:02:33.9]} 15... f6 {[%clk
0:02:53.3]} 16. Nfd2 {[%clk 0:02:32.6]} 16... Bxg2 {[%clk 0:02:50.8]} 17. Kxg2
{[%clk 0:02:34.5]} 17... Rad8 {[%clk 0:02:51.1]} 18. Ba3 {[%clk 0:02:04.7]}
18... b6 {[%clk 0:02:51.3]} 19. Rad1 {[%clk 0:02:05.7]} 19... Rd7 {[%clk
0:02:51.4]} 20. Ne4 {[%clk 0:01:48.1]} 20... Rfd8 {[%clk 0:02:51.2]} 21. Re3
{[%clk 0:01:27.6]} 21... f5 {[%clk 0:02:43.8]} 22. Ned2 {[%clk 0:01:27.9]} 22...
Nd5 {[%clk 0:02:36.6]} 23. Ree1 {[%clk 0:01:26.4]} 23... e4 {[%clk 0:01:39.6]}
24. dxe4 {[%clk 0:01:26.1]} 24... Nxc3 {[%clk 0:01:39.6]} 25. exf5 {[%clk
0:01:23.6]} 25... Nxd1 {[%clk 0:01:36.6]} 26. fxg6+ {[%clk 0:01:24.5]} 26... Kh8
{[%clk 0:01:36.6]} 27. Rxd1 {[%clk 0:01:26.4]} 27... Nd4 {[%clk 0:01:36.7]} 28.
Qe4 {[%clk 0:01:26.2]} 28... Nxb3 {[%clk 0:01:33.5]} 29. Qh4 {[%clk 0:00:37.6]}
29... Nxd2 {[%clk 0:01:31.1]} 30. Nxd2 {[%clk 0:00:35]} 30... Rxd2 {[%clk
0:01:29.4]} 31. Re1 {[%clk 0:00:35.8]} 31... Qc6+ {[%clk 0:01:26.4]} 32. Kh3
{[%clk 0:00:35.8]} 32... Qxg6 {[%clk 0:01:23.2]} 33. Re7 {[%clk 0:00:34]} 33...
Qf5+ {[%clk 0:01:19.8]} 34. Qg4 {[%clk 0:00:32.4]} 34... Qxg4+ {[%clk
0:01:19.8]} 35. Kxg4 {[%clk 0:00:34.3]} 35... R2d4+ {[%clk 0:01:17.8]} 36. Kh5
{[%clk 0:00:34.9]} 36... Rxa4 {[%clk 0:01:17.3]} 37. Bc1 {[%clk 0:00:32.6]}
37... c4 {[%clk 0:01:17.9]} 38. Kg6 {[%clk 0:00:32]} 38... Rg8 {[%clk 0:01:16]}
39. Bxh6 {[%clk 0:00:30.6]} 39... Bxh6+ {[%clk 0:01:16.4]} 40. Kxh6 {[%clk
0:00:31.9]} 40... Rc8 {[%clk 0:01:14.7]} 41. Rh7+ {[%clk 0:00:31.7]} 41... Kg8
{[%clk 0:01:14.7]} 42. Rg7+ {[%clk 0:00:33.6]} 42... Kf8 {[%clk 0:01:15.4]} 43.
Kh7 {[%clk 0:00:35.5]} 43... Rc5 {[%clk 0:01:12.9]} 44. Rg8+ {[%clk 0:00:36.6]}
44... Ke7 {[%clk 0:01:13.3]} 45. Rg7+ {[%clk 0:00:38.5]} 45... Kd6 {[%clk
0:01:13.7]} 46. g4 {[%clk 0:00:38.3]} 46... c3 {[%clk 0:01:13.9]} 47. g5 {[%clk
0:00:39.3]} 47... c2 {[%clk 0:01:13.7]} 48. g6 {[%clk 0:00:40.4]} 48... c1=Q
{[%clk 0:01:14.1]} 49. Rf7 {[%clk 0:00:41.8]} 49... Rh4+ {[%clk 0:01:13.1]} 50.
Kg8 {[%clk 0:00:42.6]} 50... Rc8+ {[%clk 0:01:10.7]} 51. Rf8 {[%clk 0:00:43.8]}
51... Rxf8+ {[%clk 0:01:10.6]} 52. Kxf8 {[%clk 0:00:45.7]} 52... Qh6+ {[%clk
0:01:11]} 53. Kf7 {[%clk 0:00:46.6]} 53... Rf4+ {[%clk 0:01:10.7]} 0-1

[Event "*** Titled Tuesday Blitz"]
[Site "Chess.com"]
[Date "2018.05.01"]
[Round "1"]
[White "51616516516"]
[Black "TheLancer"]
[Result "0-1"]
[WhiteElo "2151"]
[BlackElo "2502"]
[TimeControl "180+2"]
[EndTime "13:08:26 PDT"]
[Termination "TheLancer won by resignation"]

1. d4 {[%clk 0:02:58]} 1... Nf6 {[%clk 0:02:59.8]} 2. c4 {[%clk 0:02:55.7]} 2...
e6 {[%clk 0:03:00.7]} 3. Nc3 {[%clk 0:02:55.9]} 3... Bb4 {[%clk 0:03:02.1]} 4.
Qc2 {[%clk 0:02:57.2]} 4... Nc6 {[%clk 0:03:01.5]} 5. Nf3 {[%clk 0:02:52.5]}
5... d6 {[%clk 0:03:01.5]} 6. Bg5 {[%clk 0:02:51]} 6... h6 {[%clk 0:03:01.1]} 7.
Bh4 {[%clk 0:02:50.6]} 7... O-O {[%clk 0:02:55.3]} 8. e3 {[%clk 0:02:49.8]} 8...
Qe7 {[%clk 0:02:43]} 9. a3 {[%clk 0:02:48.3]} 9... Bxc3+ {[%clk 0:02:43.4]} 10.
Qxc3 {[%clk 0:02:50.2]} 10... e5 {[%clk 0:02:43.8]} 11. dxe5 {[%clk 0:02:45]}
11... dxe5 {[%clk 0:02:34.3]} 12. Be2 {[%clk 0:02:46.9]} 12... a5 {[%clk
0:02:31.1]} 13. O-O {[%clk 0:02:29.9]} 13... g5 {[%clk 0:02:31.6]} 14. Bg3
{[%clk 0:02:30.5]} 14... Ne4 {[%clk 0:02:31.6]} 15. Qc2 {[%clk 0:02:28.9]} 15...
f5 {[%clk 0:02:32.9]} 16. Rad1 {[%clk 0:02:12.8]} 16... Be6 {[%clk 0:02:12.5]}
17. b3 {[%clk 0:00:58.2]} 17... Bf7 {[%clk 0:01:50.1]} 18. h4 {[%clk 0:00:38.1]}
18... Bg6 {[%clk 0:01:17.2]} 19. hxg5 {[%clk 0:00:30.8]} 19... hxg5 {[%clk
0:01:19.1]} 20. Bh2 {[%clk 0:00:26.1]} 20... Kg7 {[%clk 0:01:08.9]} 21. Nd2
{[%clk 0:00:27.1]} 21... Nf6 {[%clk 0:00:59.5]} 22. Nf3 {[%clk 0:00:20.1]} 22...
g4 {[%clk 0:00:33.3]} 23. Nh4 {[%clk 0:00:18.3]} 23... Bh7 {[%clk 0:00:34.5]}
24. Nxf5+ {[%clk 0:00:18.6]} 24... Bxf5 {[%clk 0:00:34.4]} 25. Qxf5 {[%clk
0:00:19.6]} 25... Rh8 {[%clk 0:00:28]} 26. Qg5+ {[%clk 0:00:16.5]} 26... Kf7
{[%clk 0:00:25.5]} 27. Bg3 {[%clk 0:00:14.2]} 27... Rh5 {[%clk 0:00:24.7]} 28.
Qxh5+ {[%clk 0:00:04.4]} 28... Nxh5 {[%clk 0:00:26.6]} 29. Bxg4 {[%clk
0:00:06.2]} 29... Nxg3 {[%clk 0:00:26.9]} 30. fxg3+ {[%clk 0:00:08.1]} 30... Kg8
{[%clk 0:00:27.6]} 31. Rd7 {[%clk 0:00:08.8]} 31... Qg5 {[%clk 0:00:28.9]} 32.
Be6+ {[%clk 0:00:07.8]} 32... Kh8 {[%clk 0:00:28.8]} 33. Rff7 {[%clk 0:00:08.7]}
33... Qxe3+ {[%clk 0:00:28.9]} 34. Kf1 {[%clk 0:00:06.9]} 34... Qh6 {[%clk
0:00:21.4]} 35. Rh7+ {[%clk 0:00:04.2]} 35... Qxh7 {[%clk 0:00:21]} 36. Rxh7+
{[%clk 0:00:06.1]} 36... Kxh7 {[%clk 0:00:22.9]} 0-1

[Event "*** Titled Tuesday Blitz"]
[Site "Chess.com"]
[Date "2018.05.01"]
[Round "1"]
[White "ChessMavenYeti"]
[Black "RodinMihail"]
[Result "1-0"]
[WhiteElo "2003"]
[BlackElo "2423"]
[TimeControl "180+2"]
[EndTime "13:08:37 PDT"]
[Termination "ChessMavenYeti won by resignation"]

1. d4 {[%clk 0:02:52.2]} 1... d5 {[%clk 0:03:00.6]} 2. c4 {[%clk 0:02:53.2]}
2... e6 {[%clk 0:03:01.6]} 3. Nf3 {[%clk 0:02:52.5]} 3... Nf6 {[%clk 0:03:02.1]}
4. g3 {[%clk 0:02:52.3]} 4... c6 {[%clk 0:03:03]} 5. Bg2 {[%clk 0:02:53.4]} 5...
Nbd7 {[%clk 0:03:04.5]} 6. O-O {[%clk 0:02:54.4]} 6... Bd6 {[%clk 0:03:06]} 7.
Qc2 {[%clk 0:02:55.4]} 7... O-O {[%clk 0:03:06.6]} 8. b3 {[%clk 0:02:55.8]} 8...
e5 {[%clk 0:03:07]} 9. dxe5 {[%clk 0:02:53.5]} 9... Nxe5 {[%clk 0:03:07.7]} 10.
Bb2 {[%clk 0:02:54.9]} 10... Qe7 {[%clk 0:03:08]} 11. Nbd2 {[%clk 0:02:52]}
11... Bg4 {[%clk 0:03:06.8]} 12. Rfe1 {[%clk 0:02:50.6]} 12... Rfe8 {[%clk
0:03:07]} 13. Nd4 {[%clk 0:02:43.5]} 13... dxc4 {[%clk 0:03:03.8]} 14. bxc4
{[%clk 0:02:36.2]} 14... Rad8 {[%clk 0:02:58.7]} 15. h3 {[%clk 0:02:30.6]} 15...
Bc8 {[%clk 0:02:56.3]} 16. N2b3 {[%clk 0:02:24.2]} 16... Bb4 {[%clk 0:02:49.5]}
17. Red1 {[%clk 0:02:20.9]} 17... Ng6 {[%clk 0:02:29.3]} 18. c5 {[%clk
0:02:16.5]} 18... Qc7 {[%clk 0:02:21.6]} 19. a3 {[%clk 0:02:15.3]} 19... Ba5
{[%clk 0:02:22.6]} 20. Nxa5 {[%clk 0:02:14.7]} 20... Qxa5 {[%clk 0:02:23.5]} 21.
Nf5 {[%clk 0:02:10.3]} 21... Bxf5 {[%clk 0:02:21.5]} 22. Qxf5 {[%clk 0:02:09.7]}
22... Rxe2 {[%clk 0:02:05.9]} 23. Bxf6 {[%clk 0:02:07.2]} 23... gxf6 {[%clk
0:02:04.4]} 24. Qxf6 {[%clk 0:02:09.1]} 24... Rdd2 {[%clk 0:01:55.2]} 25. Rxd2
{[%clk 0:02:08.7]} 25... Qxd2 {[%clk 0:01:51.1]} 26. Bf1 {[%clk 0:02:10.2]}
26... Re6 {[%clk 0:01:48.3]} 27. Qf5 {[%clk 0:02:08.3]} 27... Qd4 {[%clk
0:01:42.7]} 28. Rc1 {[%clk 0:02:06.6]} 28... Kg7 {[%clk 0:01:42.7]} 29. Qd3
{[%clk 0:01:59.7]} 29... Qb2 {[%clk 0:01:33.2]} 30. Qc3+ {[%clk 0:01:47.2]}
30... Qxc3 {[%clk 0:01:34.1]} 31. Rxc3 {[%clk 0:01:49.1]} 31... Re1 {[%clk
0:01:27.9]} 32. Kg2 {[%clk 0:01:49.4]} 32... Rb1 {[%clk 0:01:27.7]} 33. Bc4
{[%clk 0:01:49.3]} 33... Ne5 {[%clk 0:01:27.1]} 34. Bb3 {[%clk 0:01:49.6]} 34...
Rb2 {[%clk 0:01:21.6]} 35. Kf1 {[%clk 0:01:48.5]} 35... Rd2 {[%clk 0:01:20.4]}
36. f4 {[%clk 0:01:49.2]} 36... Nd3 {[%clk 0:01:19.2]} 37. h4 {[%clk 0:01:41.2]}
37... Kf6 {[%clk 0:01:12.5]} 38. g4 {[%clk 0:01:36.4]} 38... Nxf4 {[%clk
0:01:09.6]} 39. Rf3 {[%clk 0:01:35.7]} 39... Rd4 {[%clk 0:01:09.3]} 40. g5+
{[%clk 0:01:33.1]} 40... Kg6 {[%clk 0:01:08.4]} 41. Kf2 {[%clk 0:01:33.9]} 41...
f6 {[%clk 0:01:07.6]} 42. Ke3 {[%clk 0:01:32.5]} 42... Rd3+ {[%clk 0:00:46.4]}
43. Kxf4 {[%clk 0:01:33.1]} 43... fxg5+ {[%clk 0:00:46.6]} 44. hxg5 {[%clk
0:01:34.4]} 44... Rxf3+ {[%clk 0:00:48.3]} 45. Kxf3 {[%clk 0:01:35.3]} 45...
Kxg5 {[%clk 0:00:50.2]} 46. Be6 {[%clk 0:01:34.9]} 46... Kf6 {[%clk 0:00:48]}
47. Bc8 {[%clk 0:01:35.8]} 47... b6 {[%clk 0:00:49.3]} 48. Bb7 {[%clk
0:01:35.7]} 48... a6 {[%clk 0:00:51.2]} 49. Bxa6 {[%clk 0:01:34.1]} 49... bxc5
{[%clk 0:00:51.4]} 50. Ke4 {[%clk 0:01:33.7]} 50... Ke6 {[%clk 0:00:52.2]} 51.
Bc4+ {[%clk 0:01:34.9]} 51... Kd6 {[%clk 0:00:53.1]} 52. a4 {[%clk 0:01:34.2]}
52... Kc7 {[%clk 0:00:53.7]} 53. a5 {[%clk 0:01:35.6]} 53... Kd6 {[%clk
0:00:52.4]} 54. a6 {[%clk 0:01:37.5]} 54... Kc7 {[%clk 0:00:53.3]} 55. Kf5
{[%clk 0:01:38.6]} 55... Kb6 {[%clk 0:00:48.8]} 56. Kg5 {[%clk 0:01:39.7]} 56...
Ka5 {[%clk 0:00:49]} 57. Kh6 {[%clk 0:01:40.8]} 57... Kb4 {[%clk 0:00:50.9]} 58.
a7 {[%clk 0:01:41.6]} 58... Kxc4 {[%clk 0:00:52.1]} 59. a8=Q {[%clk 0:01:43.5]}
59... Kd3 {[%clk 0:00:53.9]} 60. Qxc6 {[%clk 0:01:44.6]} 60... c4 {[%clk
0:00:55.8]} 61. Qd5+ {[%clk 0:01:44.8]} 61... Kc3 {[%clk 0:00:56.4]} 62. Kxh7
{[%clk 0:01:45.3]} 62... Kb4 {[%clk 0:00:58.3]} 63. Qb7+ {[%clk 0:01:45.6]}
63... Ka3 {[%clk 0:00:59.1]} 64. Qa6+ {[%clk 0:01:46.6]} 64... Kb4 {[%clk
0:00:59.6]} 65. Qb6+ {[%clk 0:01:47.5]} 65... Ka4 {[%clk 0:01:00.7]} 66. Qc5
{[%clk 0:01:47.2]} 66... Kb3 {[%clk 0:01:01.4]} 67. Qb5+ {[%clk 0:01:48.5]}
67... Kc3 {[%clk 0:01:03.1]} 68. Kg6 {[%clk 0:01:49.8]} 68... Kd4 {[%clk
0:01:04.6]} 69. Qb6+ {[%clk 0:01:50.6]} 69... Kd3 {[%clk 0:01:04.2]} 70. Qb5
{[%clk 0:01:51]} 70... Kd4 {[%clk 0:01:03.7]} 71. Qb4 {[%clk 0:01:51]} 71... Kd3
{[%clk 0:01:04.4]} 72. Qd6+ {[%clk 0:01:51.7]} 72... Ke4 {[%clk 0:01:05.4]} 73.
Qe6+ {[%clk 0:01:52.9]} 73... Kd4 {[%clk 0:01:06.1]} 74. Kf5 {[%clk 0:01:54.2]}
74... c3 {[%clk 0:01:06.7]} 75. Qe4+ {[%clk 0:01:54.7]} 75... Kc5 {[%clk
0:01:07.9]} 76. Qc2 {[%clk 0:01:56.2]} 76... Kd4 {[%clk 0:01:08.7]} 77. Kf4
{[%clk 0:01:57.5]} 1-0

[Event "*** Titled Tuesday Blitz"]
[Site "Chess.com"]
[Date "2018.05.01"]
[Round "1"]
[White "ilmago"]
[Black "FMJoseHerrera"]
[Result "1-0"]
[WhiteElo "1929"]
[BlackElo "2403"]
[TimeControl "180+2"]
[EndTime "13:08:49 PDT"]
[Termination "ilmago won on time"]

1. e4 {[%clk 0:03:01]} 1... c5 {[%clk 0:03:00.5]} 2. Nf3 {[%clk 0:03:00.1]} 2...
e6 {[%clk 0:03:00.5]} 3. d4 {[%clk 0:03:00.9]} 3... cxd4 {[%clk 0:03:02.4]} 4.
Nxd4 {[%clk 0:03:01.5]} 4... a6 {[%clk 0:03:03.8]} 5. c4 {[%clk 0:02:59.2]} 5...
Qc7 {[%clk 0:03:04.4]} 6. Be3 {[%clk 0:02:52.7]} 6... b6 {[%clk 0:03:03.9]} 7.
Bd3 {[%clk 0:02:47.4]} 7... Bb7 {[%clk 0:03:04]} 8. O-O {[%clk 0:02:47.4]} 8...
Nf6 {[%clk 0:03:03.6]} 9. Nc3 {[%clk 0:02:41.7]} 9... d6 {[%clk 0:03:03.4]} 10.
Rc1 {[%clk 0:02:39.1]} 10... Nbd7 {[%clk 0:03:04.2]} 11. f3 {[%clk 0:02:38.6]}
11... Be7 {[%clk 0:03:04.8]} 12. Qd2 {[%clk 0:02:32.9]} 12... Rc8 {[%clk
0:03:01.8]} 13. b3 {[%clk 0:02:32.6]} 13... Qb8 {[%clk 0:02:59.2]} 14. Rfd1
{[%clk 0:02:32.8]} 14... h5 {[%clk 0:02:59.7]} 15. Bg5 {[%clk 0:02:09]} 15... h4
{[%clk 0:02:59.9]} 16. h3 {[%clk 0:02:09.5]} 16... Ne5 {[%clk 0:02:57.8]} 17.
Bb1 {[%clk 0:02:08.3]} 17... Qa8 {[%clk 0:02:56.2]} 18. Qf2 {[%clk 0:02:02.4]}
18... Ng6 {[%clk 0:02:50.1]} 19. Nde2 {[%clk 0:02:00.2]} 19... Rh5 {[%clk
0:02:29]} 20. Bxf6 {[%clk 0:01:55.3]} 20... gxf6 {[%clk 0:02:16.6]} 21. Qxb6
{[%clk 0:01:56.5]} 21... d5 {[%clk 0:02:15.1]} 22. Kh1 {[%clk 0:01:27]} 22...
dxc4 {[%clk 0:01:58.2]} 23. bxc4 {[%clk 0:01:18.9]} 23... Rxc4 {[%clk
0:01:49.7]} 24. Qb3 {[%clk 0:01:18.2]} 24... Rc8 {[%clk 0:01:32.5]} 25. Na4
{[%clk 0:01:18.8]} 25... Rxc1 {[%clk 0:01:33.1]} 26. Rxc1 {[%clk 0:01:19.3]}
26... Bc6 {[%clk 0:01:09.2]} 27. Nd4 {[%clk 0:01:12.2]} 27... Bxa4 {[%clk
0:00:53.3]} 28. Qxa4+ {[%clk 0:01:12.8]} 28... Kf8 {[%clk 0:00:54.9]} 29. Bd3
{[%clk 0:01:07.2]} 29... Kg7 {[%clk 0:00:47.7]} 30. Rc7 {[%clk 0:01:03.7]} 30...
Qd8 {[%clk 0:00:41.4]} 31. Rd7 {[%clk 0:01:01.4]} 31... Qb6 {[%clk 0:00:37.1]}
32. Qxa6 {[%clk 0:01:01.4]} 32... Qb2 {[%clk 0:00:21.5]} 33. Qc4 {[%clk
0:00:59.8]} 33... Qa1+ {[%clk 0:00:21.5]} 34. Kh2 {[%clk 0:00:57.7]} 34... Rc5
{[%clk 0:00:22.4]} 35. Nxe6+ {[%clk 0:00:51.5]} 35... fxe6 {[%clk 0:00:23.6]}
36. Qxc5 {[%clk 0:00:52.4]} 36... Qe5+ {[%clk 0:00:25.5]} 37. Qxe5 {[%clk
0:00:52.7]} 37... fxe5 {[%clk 0:00:27]} 38. a4 {[%clk 0:00:49.6]} 38... Kf6
{[%clk 0:00:28.3]} 39. a5 {[%clk 0:00:49.8]} 39... Bc5 {[%clk 0:00:29.6]} 40.
Rc7 {[%clk 0:00:48.8]} 40... Bd6 {[%clk 0:00:30.1]} 41. Rd7 {[%clk 0:00:48.5]}
41... Bc5 {[%clk 0:00:30.4]} 42. a6 {[%clk 0:00:49.7]} 42... Nf4 {[%clk
0:00:31.2]} 43. Bc4 {[%clk 0:00:49.5]} 43... Nh5 {[%clk 0:00:30.6]} 44. a7
{[%clk 0:00:48.7]} 44... Ng3 {[%clk 0:00:31]} 45. a8=Q {[%clk 0:00:46.9]} 45...
Nf1+ {[%clk 0:00:16.8]} 46. Bxf1 {[%clk 0:00:46.3]} 1-0

[Event "*** Titled Tuesday Blitz"]
[Site "Chess.com"]
[Date "2018.05.01"]
[Round "1"]
[White "savinspm"]
[Black "djano"]
[Result "0-1"]
[WhiteElo "1975"]
[BlackElo "2438"]
[TimeControl "180+2"]
[EndTime "13:08:50 PDT"]
[Termination "djano won by checkmate"]

1. e4 {[%clk 0:02:57.7]} 1... c5 {[%clk 0:03:00.1]} 2. Nc3 {[%clk 0:02:55.8]}
2... a6 {[%clk 0:02:58.6]} 3. a4 {[%clk 0:02:51.3]} 3... g6 {[%clk 0:02:52.1]}
4. g3 {[%clk 0:02:50.4]} 4... Bg7 {[%clk 0:02:52.9]} 5. Bg2 {[%clk 0:02:51.6]}
5... Nc6 {[%clk 0:02:53.7]} 6. d3 {[%clk 0:02:52.7]} 6... Nf6 {[%clk 0:02:54.7]}
7. Be3 {[%clk 0:02:53]} 7... d6 {[%clk 0:02:53.6]} 8. h3 {[%clk 0:02:42.3]} 8...
O-O {[%clk 0:02:52]} 9. Qd2 {[%clk 0:02:34.9]} 9... Nd4 {[%clk 0:02:51]} 10.
Nge2 {[%clk 0:02:30.3]} 10... Nd7 {[%clk 0:02:45.3]} 11. Nd1 {[%clk 0:02:25.4]}
11... Nxe2 {[%clk 0:02:41.9]} 12. Qxe2 {[%clk 0:02:23.8]} 12... Rb8 {[%clk
0:02:32.2]} 13. O-O {[%clk 0:02:20.1]} 13... b5 {[%clk 0:02:31.7]} 14. axb5
{[%clk 0:02:05.3]} 14... axb5 {[%clk 0:02:33.6]} 15. Rb1 {[%clk 0:01:41.9]}
15... b4 {[%clk 0:02:32.4]} 16. b3 {[%clk 0:01:42.6]} 16... Bb7 {[%clk
0:02:26.9]} 17. f4 {[%clk 0:01:38.6]} 17... Ra8 {[%clk 0:02:26.1]} 18. f5 {[%clk
0:01:32.1]} 18... Ne5 {[%clk 0:02:27.1]} 19. Bf4 {[%clk 0:01:32.2]} 19... Ra2
{[%clk 0:02:24]} 20. Ne3 {[%clk 0:01:26.5]} 20... Ba6 {[%clk 0:01:44.5]} 21. g4
{[%clk 0:01:14.5]} 21... Bxd3 {[%clk 0:01:39.1]} 22. Qd2 {[%clk 0:01:03.2]}
22... Bxf1 {[%clk 0:01:36.5]} 23. Rxf1 {[%clk 0:01:00.9]} 23... e6 {[%clk
0:01:17.8]} 24. g5 {[%clk 0:00:49.5]} 24... Re8 {[%clk 0:01:05.9]} 25. f6 {[%clk
0:00:48.9]} 25... Bf8 {[%clk 0:01:07]} 26. Rd1 {[%clk 0:00:39.2]} 26... Qb6
{[%clk 0:01:00.5]} 27. Bxe5 {[%clk 0:00:28.8]} 27... dxe5 {[%clk 0:01:01.1]} 28.
Nc4 {[%clk 0:00:29.8]} 28... Qa7 {[%clk 0:00:55.4]} 29. Bf1 {[%clk 0:00:27.6]}
29... Ra1 {[%clk 0:00:51.8]} 30. Kg2 {[%clk 0:00:14.2]} 30... Rxd1 {[%clk
0:00:51.1]} 31. Qxd1 {[%clk 0:00:16.1]} 31... Qc7 {[%clk 0:00:52.2]} 32. Bd3
{[%clk 0:00:16.9]} 32... Rd8 {[%clk 0:00:52.2]} 33. Qe2 {[%clk 0:00:17]} 33...
Rd4 {[%clk 0:00:50.9]} 34. h4 {[%clk 0:00:18]} 34... h5 {[%clk 0:00:49.9]} 35.
Kg3 {[%clk 0:00:16.8]} 35... Qa7 {[%clk 0:00:46.2]} 36. Kg2 {[%clk 0:00:17.9]}
36... Qa1 {[%clk 0:00:47.1]} 37. Qf1 {[%clk 0:00:18.9]} 37... Qc3 {[%clk
0:00:45.7]} 38. Qe2 {[%clk 0:00:19.4]} 38... Rd8 {[%clk 0:00:43.6]} 39. Kh2
{[%clk 0:00:20]} 39... Ra8 {[%clk 0:00:44.6]} 40. Kg2 {[%clk 0:00:21.2]} 40...
Ra1 {[%clk 0:00:45.8]} 41. Kh2 {[%clk 0:00:21.6]} 41... Re1 {[%clk 0:00:46.8]}
42. Qf2 {[%clk 0:00:22.6]} 42... Qa1 {[%clk 0:00:47.4]} 43. Qg2 {[%clk
0:00:22.8]} 43... Rd1 {[%clk 0:00:44.4]} 44. Qe2 {[%clk 0:00:23.3]} 44... Qc1
{[%clk 0:00:42.4]} 45. Kg2 {[%clk 0:00:23.4]} 45... Re1 {[%clk 0:00:42.4]} 46.
Qf2 {[%clk 0:00:24]} 46... Rh1 {[%clk 0:00:42.2]} 47. Kg3 {[%clk 0:00:24.6]}
47... Rg1+ {[%clk 0:00:41.6]} 48. Kh2 {[%clk 0:00:25.2]} 48... Rg4 {[%clk
0:00:43.5]} 49. Kh3 {[%clk 0:00:26.1]} 49... Qh1+ {[%clk 0:00:41.4]} 50. Qh2
{[%clk 0:00:26.9]} 50... Qf3+ {[%clk 0:00:42.5]} 51. Qg3 {[%clk 0:00:18.4]}
51... Qxg3# {[%clk 0:00:43.5]} 0-1